bitfinex/quotes_BTCUSD_20251009
["timestamp","ask_amount","ask_price","bid_price","bid_amount"]
[1760020867926,0.43256839,121760.0,121750.0,0.74717294]
[1760020868247,0.42497402,121760.0,121750.0,0.50725294]
[1760020868652,0.50051224,121770.0,121760.0,0.16425755]
[1760020868855,0.50810736,121770.0,121760.0,0.6252696]
[1760020869054,0.50810736,121770.0,121760.0,0.4155015]
[1760020869055,0.11770164,121770.0,121760.0,0.4155015]
[1760020869265,0.42517402,121780.0,121770.0,0.18924405]
[1760020869266,0.0002,121780.0,121770.0,0.18924405]
[1760020869636,0.0002,121780.0,121770.0,0.38249611]
[1760020869836,0.00071217,121780.0,121770.0,0.38249611]
[1760020870055,0.00071217,121780.0,121770.0,0.25388686]
[1760020870272,0.42568619,121780.0,121770.0,0.73792801]
[1760020870477,0.00071217,121780.0,121770.0,0.73792801]
[1760020870638,0.00071217,121780.0,121770.0,1.08060801]
[1760020871045,0.42568619,121780.0,121770.0,0.73892801]
[1760020871257,0.00071217,121780.0,121770.0,0.73892801]
[1760020871589,7e-05,121790.0,121780.0,0.16423057]
[1760020871926,1e-08,121800.0,121790.0,0.65936897]
[1760020872134,0.0002,121820.0,121810.0,0.16419013]
[1760020872343,0.42517402,121820.0,121810.0,0.59926219]
[1760020872540,0.0002,121820.0,121810.0,0.68223219]
[1760020872742,0.42517402,121820.0,121810.0,0.68219219]
[1760020873322,0.0002837,121820.0,121810.0,0.68319219]
[1760020873911,0.0002837,121820.0,121810.0,0.74550281]
[1760020874126,0.00107736,121830.0,121820.0,0.53432855]
[1760020874489,0.92497402,121850.0,121840.0,0.1641497]
[1760020874701,0.92497402,121850.0,121840.0,0.35691176]
[1760020874876,1.34994804,121850.0,121840.0,0.44231176]
[1760020875078,1.34994804,121850.0,121840.0,0.68215176]
[1760020875486,0.92497402,121850.0,121840.0,0.68215176]
[1760020875686,0.92497402,121850.0,121840.0,0.35691176]
[1760020875889,0.92497402,121850.0,121840.0,0.68211176]
[1760020876090,1.34994804,121850.0,121840.0,0.35691176]
[1760020876340,1.34994804,121850.0,121840.0,0.68211176]
[1760020876532,1.51508427,121850.0,121840.0,0.5989897]
[1760020876847,1.35094804,121850.0,121840.0,0.5989897]
[1760020877400,1.51508427,121850.0,121840.0,0.2737897]
[1760020877637,1.51866724,121850.0,121840.0,0.05999]
[1760020877816,1.35553101,121850.0,121840.0,0.2737897]
[1760020878025,1.51966724,121850.0,121840.0,0.2737897]
[1760020878225,1.54517724,121850.0,121840.0,0.29979]
[1760020878426,1.54517724,121850.0,121830.0,0.11203]
[1760020878427,0.1641497,121840.0,121830.0,0.11203]
[1760020878634,0.42497402,121840.0,121830.0,0.54927317]
[1760020878786,0.59219509,121840.0,121830.0,0.54927317]
[1760020878999,0.59219509,121840.0,121830.0,0.43476]
[1760020879203,0.16416317,121830.0,121820.0,0.02681243]
[1760020879410,0.60966719,121830.0,121820.0,0.26657243]
[1760020879611,0.61222688,121830.0,121820.0,0.29989243]
[1760020879822,0.64862688,121830.0,121820.0,0.02681243]
[1760020880038,0.00255969,121830.0,121820.0,0.27395908]
[1760020880252,0.59169688,121830.0,121820.0,0.51471908]
[1760020880650,0.59169688,121830.0,121820.0,0.46506908]
[1760020881065,0.61222688,121830.0,121820.0,0.06113243]
[1760020881289,0.61222688,121830.0,121820.0,0.30089243]
[1760020881496,0.18725286,121830.0,121820.0,0.06113243]
[1760020881703,0.42753371,121830.0,121820.0,0.51371908]
[1760020881918,0.59369688,121830.0,121820.0,0.46406908]
[1760020882120,0.59369688,121830.0,121820.0,0.06013243]
[1760020882121,0.65062688,121830.0,121820.0,0.06013243]
[1760020882292,0.65062688,121830.0,121820.0,0.00014243]
[1760020882492,1.03665688,121830.0,121820.0,0.00014243]
[1760020882740,1.27641688,121830.0,121820.0,0.00014243]
[1760020884908,1.65490166,121830.0,121820.0,0.00014243]
[1760020885097,1.65490166,121830.0,121820.0,1e-08]
[1760020885342,1.89466166,121830.0,121820.0,1e-08]
[1760020885548,1.05007682,121830.0,121820.0,1e-08]
[1760020885750,1.90757859,121830.0,121820.0,1e-08]
[1760020885930,1.90657859,121830.0,121820.0,1e-08]
[1760020886160,1.97054661,121830.0,121820.0,1e-08]
[1760020886369,1.80978341,121830.0,121820.0,1e-08]
[1760020886571,2.04950341,121830.0,121820.0,1e-08]
[1760020886783,1.81178341,121830.0,121820.0,1e-08]
[1760020886984,2.05154341,121830.0,121820.0,1e-08]
[1760020887110,2.05114341,121830.0,121820.0,1e-08]
[1760020887312,1.81138341,121830.0,121820.0,1e-08]
[1760020887525,1.72602341,121830.0,121820.0,1e-08]
[1760020887731,1.72402341,121830.0,121820.0,1e-08]
[1760020887944,2.39070341,121830.0,121820.0,1e-08]
[1760020888143,1.53252932,121830.0,121820.0,1e-08]
[1760020888387,1.93945249,121830.0,121820.0,1e-08]
[1760020888596,1.70169249,121830.0,121820.0,1e-08]
[1760020888743,2.36837249,121830.0,121820.0,1e-08]
[1760020888943,2.14373258,121830.0,121820.0,1e-08]
[1760020889146,2.0347338,121830.0,121820.0,1e-08]
[1760020889387,2.13473379,121830.0,121820.0,1e-08]
[1760020889945,2.0347338,121830.0,121820.0,1e-08]
[1760020890150,1.89505379,121830.0,121820.0,1e-08]
[1760020890350,1.26305701,121830.0,121820.0,1e-08]
[1760020890553,1.92982819,121830.0,121820.0,1e-08]
[1760020890884,1.9147081,121830.0,121820.0,1e-08]
[1760020891086,1.9548382,121830.0,121820.0,1e-08]
[1760020891359,2.0550782,121830.0,121820.0,1e-08]
[1760020891528,2.135075,121830.0,121820.0,1e-08]
[1760020891739,2.70006399,121830.0,121820.0,1e-08]
[1760020892064,1.95295869,121830.0,121820.0,1e-08]
[1760020892222,2.61971869,121830.0,121820.0,1e-08]
[1760020892424,2.47912169,121830.0,121820.0,1e-08]
[1760020892626,2.41082469,121830.0,121820.0,1e-08]
[1760020893034,2.65058469,121830.0,121820.0,1e-08]
[1760020893419,1.98382469,121830.0,121820.0,1e-08]
[1760020893814,2.65062469,121830.0,121820.0,1e-08]
[1760020894014,2.41086469,121830.0,121820.0,1e-08]
[1760020894218,2.49561169,121830.0,121820.0,1e-08]
[1760020894427,2.23940169,121830.0,121820.0,1e-08]
[1760020894634,2.47916169,121830.0,121820.0,1e-08]
[1760020894853,2.52856169,121830.0,121820.0,1e-08]
[1760020895060,2.28880169,121830.0,121820.0,1e-08]
[1760020895510,1.86176169,121830.0,121820.0,1e-08]
[1760020895721,2.4285617,121830.0,121820.0,1e-08]
[1760020895897,1.7873617,121830.0,121820.0,1e-08]
[1760020896095,2.4541617,121830.0,121820.0,1e-08]
[1760020896966,2.2144017,121830.0,121820.0,1e-08]
[1760020897347,2.4541617,121830.0,121820.0,1e-08]
[1760020897656,2.2144017,121830.0,121820.0,1e-08]
[1760020897850,2.4542017,121830.0,121820.0,1e-08]
[1760020898055,2.4541617,121830.0,121820.0,1e-08]
[1760020898221,2.2144017,121830.0,121820.0,1e-08]
[1760020898423,3.50858569,121830.0,121820.0,1e-08]
[1760020898652,3.38894769,121830.0,121820.0,1e-08]
[1760020898827,2.90106369,121830.0,121820.0,1e-08]
[1760020899037,3.13018369,121830.0,121820.0,1e-08]
[1760020899658,2.86554369,121830.0,121820.0,1e-08]
[1760020900230,2.62578369,121830.0,121820.0,1e-08]
[1760020900430,2.84557969,121830.0,121820.0,1e-08]
[1760020900673,0.50429803,121730.0,121720.0,0.06619503]
[1760020901022,0.6853869,121730.0,121720.0,0.06670456]
[1760020901228,0.16432503,121710.0,121700.0,0.06619503]
[1760020901450,0.16432503,121710.0,121700.0,0.06627873]
[1760020901451,1.38442497,121710.0,121700.0,0.06627873]
[1760020901827,1.79274703,121710.0,121700.0,8.37e-05]
[1760020902147,1.87274383,121710.0,121700.0,8.37e-05]
[1760020902345,1.63847834,121710.0,121700.0,8.37e-05]
[1760020902749,1.87827834,121710.0,121700.0,8.37e-05]
[1760020902983,1.88027834,121710.0,121700.0,8.37e-05]
[1760020903186,1.64047834,121710.0,121700.0,8.37e-05]
[1760020903402,1.55507834,121710.0,121700.0,8.37e-05]
[1760020903596,1.55707834,121710.0,121700.0,8.37e-05]
[1760020903816,1.64247834,121710.0,121700.0,8.37e-05]
[1760020904050,1.88027834,121710.0,121700.0,8.37e-05]
[1760020904259,1.55507834,121710.0,121700.0,8.37e-05]
[1760020904511,1.88231834,121710.0,121700.0,8.37e-05]
[1760020904962,1.64251834,121710.0,121700.0,8.37e-05]
[1760020905207,1.64251834,121710.0,121700.0,1e-08]
[1760020905428,0.16439256,121660.0,121650.0,0.02701]
[1760020905676,0.16440608,121650.0,121640.0,0.14692503]
[1760020905902,0.5843801,121650.0,121640.0,0.06619503]
[1760020906134,1.00935412,121650.0,121640.0,0.06619503]
[1760020906348,0.16441959,121640.0,121630.0,0.02719]
[1760020906617,0.82923361,121640.0,121630.0,0.02719]
[1760020906818,0.92939361,121640.0,121630.0,0.02719]
[1760020907022,1.16923361,121640.0,121630.0,0.02719]
[1760020907225,1.16923361,121640.0,121630.0,0.03180628]
[1760020907426,1.16923361,121640.0,121630.0,0.00461628]
[1760020907656,1.24923041,121640.0,121630.0,0.00461628]
[1760020908078,1.16923361,121640.0,121630.0,0.00461628]
[1760020908223,1.16427361,121640.0,121630.0,0.00461628]
[1760020909454,1.16627361,121640.0,121630.0,0.00461628]
[1760020909877,0.92639361,121640.0,121630.0,0.00461628]
[1760020910096,1.16627361,121640.0,121630.0,0.00461628]
[1760020910324,1.16727361,121640.0,121630.0,0.00461628]
[1760020910768,1.17235504,121640.0,121630.0,0.00461628]
[1760020911180,0.93447504,121640.0,121630.0,0.00461628]
[1760020911383,1.17939504,121640.0,121630.0,0.00461628]
[1760020912245,1.12634085,121640.0,121630.0,0.00461628]
[1760020912676,1.21182085,121640.0,121630.0,0.00461628]
[1760020913100,1.28732126,121640.0,121630.0,0.00461628]
[1760020913505,1.02676683,121640.0,121630.0,0.00461628]
[1760020913684,1.45174085,121640.0,121630.0,0.00461628]
[1760020913933,0.85817751,121640.0,121630.0,0.00461628]
[1760020914151,1.18361751,121640.0,121630.0,0.16904939]
[1760020914570,0.85817751,121640.0,121630.0,0.00461628]
[1760020914769,1.18361751,121640.0,121630.0,0.00461628]
[1760020915110,1.18361751,121640.0,121630.0,0.16904939]
[1760020915111,0.85817751,121640.0,121630.0,0.16904939]
[1760020915630,0.77505545,121640.0,121630.0,0.23372939]
[1760020915833,1.01501545,121640.0,121630.0,0.23372939]
[1760020916192,0.77505545,121640.0,121630.0,0.19623939]
[1760020916529,1.01501545,121640.0,121630.0,0.23372939]
[1760020917045,0.004,121640.0,121630.0,0.28744939]
[1760020918127,0.42897402,121640.0,121630.0,0.28744939]
[1760020918734,0.42697402,121640.0,121630.0,0.28744939]
[1760020918948,0.57629111,121640.0,121620.0,0.0004]
[1760020919159,1.12816109,121630.0,121620.0,0.0004]
[1760020919377,0.96372798,121630.0,121620.0,0.0004]
[1760020919581,0.76497402,121630.0,121620.0,0.28324663]
[1760020919786,0.42697402,121640.0,121630.0,0.16443311]
[1760020919991,0.58292,121640.0,121630.0,0.22911311]
[1760020920190,0.002,121640.0,121630.0,0.22911311]
[1760020920400,0.243,121640.0,121630.0,0.28283311]
[1760020920610,0.002,121640.0,121630.0,0.28283311]
[1760020921018,0.002,121640.0,121630.0,0.52387311]
[1760020921220,0.00015185,121660.0,121650.0,0.16440608]
[1760020921555,0.00015185,121660.0,121650.0,0.52384608]
[1760020922369,0.00015185,121660.0,121650.0,0.28280608]
[1760020922576,0.42512587,121660.0,121650.0,0.19159608]
[1760020922793,0.42512587,121660.0,121650.0,0.16440608]
[1760020923417,0.50824793,121660.0,121640.0,0.19160945]
[1760020923747,0.42497402,121650.0,121640.0,0.19160945]
[1760020924185,0.5966612,121650.0,121640.0,0.22909945]
[1760020924410,0.66431391,121660.0,121650.0,0.16440608]
[1760020924616,0.34015185,121660.0,121650.0,0.22908608]
[1760020924816,0.00015185,121660.0,121650.0,0.28280608]
[1760020925164,0.00203611,121660.0,121650.0,0.28280608]
[1760020925616,0.00203611,121660.0,121650.0,0.52380608]
[1760020925836,0.00303611,121660.0,121650.0,0.52380608]
[1760020926065,0.00303611,121660.0,121650.0,0.60928608]
[1760020926262,0.00203611,121660.0,121650.0,0.60928608]
[1760020926748,0.00203611,121660.0,121650.0,0.60932608]
[1760020926957,0.00203611,121660.0,121650.0,0.60928608]
[1760020927373,1e-08,121660.0,121650.0,0.45140814]
[1760020927640,0.06619503,121700.0,121690.0,0.16435204]
[1760020927641,0.08723612,121700.0,121690.0,0.16435204]
[1760020927922,0.68404953,121700.0,121690.0,0.44284204]
[1760020928164,0.08738833,121700.0,121680.0,0.19154362]
[1760020928385,0.5966612,121690.0,121680.0,0.40531362]
[1760020928626,0.69481088,121690.0,121670.0,0.02719]
[1760020928865,0.46830158,121690.0,121680.0,0.16436554]
[1760020929741,0.34,121680.0,121670.0,0.1915688]
[1760020929983,0.95168882,121680.0,121670.0,0.5271788]
[1760020930207,0.01502762,121680.0,121670.0,0.2862188]
[1760020930413,0.01502762,121680.0,121670.0,0.5270988]
[1760020930650,0.01502762,121680.0,121670.0,0.2862188]
[1760020931103,0.01502762,121680.0,121670.0,0.5271788]
[1760020931518,0.61168882,121680.0,121670.0,0.5559688]
[1760020931737,0.61168882,121680.0,121670.0,0.5559288]
[1760020932148,0.61168882,121680.0,121670.0,0.4704488]
[1760020932606,0.01502762,121680.0,121670.0,0.2862188]
[1760020932838,0.01502762,121680.0,121670.0,0.5271788]
[1760020933132,0.16440145,121660.0,121640.0,0.02719]
[1760020933369,0.67978326,121650.0,121640.0,0.00137135]
[1760020933600,0.85921696,121650.0,121640.0,0.21066135]
[1760020933786,0.85921696,121650.0,121640.0,0.24361135]
[1760020933994,1.30936566,121650.0,121640.0,0.00137135]
[1760020934202,1.22936886,121650.0,121640.0,0.00137135]
[1760020934541,1.22936886,121650.0,121640.0,0.0015232]
[1760020935546,1.23036886,121650.0,121640.0,0.0015232]
[1760020935750,0.63370766,121650.0,121640.0,0.0015232]
[1760020936121,1.22936886,121650.0,121640.0,0.0015232]
[1760020936543,1.23136886,121650.0,121640.0,0.0015232]
[1760020936903,1.22936886,121650.0,121640.0,0.0015232]
[1760020937123,1.23136886,121650.0,121640.0,0.0015232]
[1760020938242,1.23136886,121650.0,121640.0,0.0677732]
[1760020938447,1.23136886,121650.0,121640.0,0.3097332]
[1760020938802,1.22936886,121650.0,121640.0,0.3097332]
[1760020938999,1.23136886,121650.0,121640.0,0.0015232]
[1760020939198,0.63470766,121650.0,121640.0,0.0015232]
[1760020939399,1.1180949,121650.0,121640.0,0.1640532]
[1760020939653,1.1180949,121650.0,121640.0,0.0015232]
[1760020939856,1.1180949,121650.0,121640.0,0.0937232]
[1760020940009,1.20121696,121650.0,121640.0,0.0015232]
[1760020940209,1.20121696,121650.0,121640.0,0.2212432]
[1760020940671,1.23136886,121650.0,121640.0,0.0015232]
[1760020940894,1.23136886,121650.0,121640.0,0.2432432]
[1760020941444,1.23136886,121650.0,121640.0,0.2432032]
[1760020942076,1.23136886,121650.0,121640.0,0.0015232]
[1760020942280,1.23136886,121650.0,121640.0,0.2432032]
[1760020943020,1.23136886,121650.0,121640.0,0.0015232]
[1760020943259,1.23136886,121650.0,121640.0,0.1222832]
[1760020943434,1.23136886,121650.0,121640.0,0.0015232]
[1760020943618,1.23136886,121650.0,121640.0,0.2430432]
[1760020943828,0.63470766,121650.0,121640.0,0.2430432]
[1760020944022,1.23136886,121650.0,121640.0,0.2430432]
[1760020944520,1.23136886,121650.0,121640.0,0.0677732]
[1760020944882,1.23136886,121650.0,121640.0,0.3092132]
[1760020945695,1.23147228,121650.0,121640.0,0.0677732]
[1760020945892,1.23147228,121650.0,121640.0,0.2430032]
[1760020946293,1.23147228,121650.0,121640.0,0.0015232]
[1760020946474,1.31146908,121650.0,121640.0,0.1312032]
[1760020946895,1.31146908,121650.0,121640.0,0.0015232]
[1760020948219,1.55274908,121650.0,121640.0,0.0015232]
[1760020948674,1.31146908,121650.0,121640.0,0.0015232]
[1760020948826,1.23147228,121650.0,121640.0,0.0677732]
[1760020949031,1.0670662,121650.0,121640.0,0.0677732]
[1760020949258,1.20132038,121650.0,121640.0,0.28888279]
[1760020950035,0.4402531,121650.0,121640.0,0.28888279]
[1760020950240,0.01713104,121650.0,121640.0,0.53004279]
[1760020950436,0.01713104,121650.0,121640.0,0.28888279]
[1760020950752,0.01713104,121650.0,121640.0,0.53008279]
[1760020950956,0.01513104,121650.0,121640.0,0.53008279]
[1760020951342,0.01613104,121650.0,121640.0,0.53008279]
[1760020951717,0.01613104,121650.0,121640.0,0.37200485]
[1760020951923,0.01513104,121650.0,121640.0,0.61324485]
[1760020952125,0.01613104,121650.0,121640.0,0.61324485]
[1760020952715,0.01513104,121650.0,121640.0,0.61324485]
[1760020952928,0.01513104,121650.0,121640.0,0.61312485]
[1760020953143,0.01513104,121650.0,121640.0,0.71795142]
[1760020953433,0.01513104,121650.0,121640.0,0.69860485]
[1760020954254,0.52002314,121670.0,121640.0,0.38022582]
[1760020954414,1.11668434,121670.0,121660.0,0.19268256]
[1760020954612,0.9523051,121670.0,121660.0,0.23064256]
[1760020954813,0.9523051,121670.0,121660.0,0.28733256]
[1760020955038,1.11668415,121670.0,121660.0,0.28733256]
[1760020955272,0.34,121650.0,121640.0,0.0015232]
[1760020955606,1.47043228,121650.0,121640.0,0.0015232]
[1760020955826,1.37267908,121650.0,121640.0,0.0015232]
[1760020955998,1.45815908,121650.0,121640.0,0.0015232]
[1760020956198,1.70023908,121650.0,121640.0,0.0015232]
[1760020956400,1.45815908,121650.0,121640.0,0.0015232]
[1760020956579,1.70023908,121650.0,121640.0,0.0015232]
[1760020957220,0.19458501,121630.0,121620.0,0.0004]
[1760020957419,0.93776645,121630.0,121620.0,0.0004]
[1760020957614,0.99681645,121630.0,121620.0,0.0004]
[1760020958561,1.21329141,121630.0,121620.0,0.0004]
[1760020958774,1.21429141,121630.0,121620.0,0.0004]
[1760020959134,1.19916037,121630.0,121620.0,0.0004]
[1760020959844,1.19920037,121630.0,121620.0,0.0004]
[1760020960037,0.95728037,121630.0,121620.0,0.0004]
[1760020960252,1.19904037,121630.0,121620.0,0.0004]
[1760020960472,0.93457037,121630.0,121620.0,0.0004]
[1760020960610,0.93457037,121630.0,121620.0,0.02745]
[1760020960611,0.93419037,121630.0,121620.0,0.02745]
[1760020961310,0.93419037,121630.0,121620.0,0.0004]
[1760020961713,0.90403847,121630.0,121620.0,0.0004]
[1760020961956,1.10224641,121630.0,121620.0,0.12049]
[1760020962438,1.10224641,121630.0,121620.0,0.0653]
[1760020963216,1.10224641,121630.0,121620.0,0.06632628]
[1760020964255,1.10524641,121630.0,121620.0,0.06632628]
[1760020964462,1.14078641,121630.0,121620.0,0.02847628]
[1760020966596,0.3441521,121630.0,121620.0,0.06562628]
[1760020966908,1.10524641,121630.0,121620.0,0.06562628]
[1760020967135,1.14078641,121630.0,121620.0,0.06562628]
[1760020967299,1.14078641,121630.0,121620.0,0.02847628]
[1760020967533,1.14078641,121630.0,121620.0,0.2959777]
[1760020967534,0.0041521,121630.0,121620.0,0.2959777]
[1760020967731,0.0041521,121630.0,121620.0,0.60726497]
[1760020968399,0.0031521,121630.0,121620.0,0.60726497]
[1760020968609,0.0001521,121630.0,121620.0,0.36590497]
[1760020968812,0.0041521,121630.0,121620.0,0.69270497]
[1760020969241,0.0011521,121630.0,121620.0,0.28278291]
[1760020969410,0.0031521,121630.0,121620.0,0.60962291]
[1760020969862,0.0011521,121630.0,121620.0,0.36830291]
[1760020970064,0.0011521,121630.0,121620.0,0.69266497]
[1760020970425,0.28324727,121630.0,121620.0,0.00142628]
[1760020970627,1.40580037,121630.0,121620.0,0.00142628]
[1760020971262,1.38559037,121630.0,121620.0,0.00142628]
[1760020971671,1.46458717,121630.0,121620.0,0.00142628]
[1760020971828,1.47971464,121630.0,121620.0,0.00142628]
[1760020972027,1.50392464,121630.0,121620.0,0.00142628]
[1760020972248,1.50092464,121630.0,121620.0,0.00142628]
[1760020972453,1.50192464,121630.0,121620.0,0.00142628]
[1760020972674,1.50492464,121630.0,121620.0,0.00142628]
[1760020973098,1.56719184,121630.0,121620.0,0.00142628]
[1760020975647,1.56719184,121630.0,121620.0,0.00092628]
[1760020976257,1.56718284,121630.0,121620.0,0.00092628]
[1760020977188,1.45586284,121630.0,121620.0,0.00092628]
[1760020977400,1.69850284,121630.0,121620.0,0.00092628]
[1760020977901,1.61850604,121630.0,121620.0,0.00092628]
[1760020978200,1.35365604,121630.0,121620.0,0.00092628]
[1760020978431,0.16858521,121630.0,121620.0,0.11899628]
[1760020978876,0.16858521,121630.0,121620.0,0.28344291]
[1760020979077,0.0041521,121630.0,121620.0,0.28344291]
[1760020979495,0.16858521,121630.0,121620.0,0.28344291]
[1760020979921,0.0041521,121630.0,121620.0,0.28344291]
[1760020980110,0.0031521,121630.0,121620.0,0.28344291]
[1760020980346,0.0031521,121630.0,121620.0,0.61144291]
[1760020980552,0.0041521,121630.0,121620.0,0.69456497]
[1760020980766,0.0011521,121630.0,121620.0,0.69456497]
[1760020981181,0.0031521,121630.0,121620.0,0.28344291]
[1760020981596,0.16558521,121630.0,121620.0,0.11899628]
[1760020981803,0.76424641,121630.0,121620.0,0.06628628]
[1760020982007,0.76324641,121630.0,121620.0,0.30880628]
[1760020982218,0.76124641,121630.0,121620.0,0.47325291]
[1760020982427,0.84224321,121630.0,121620.0,0.06628628]
[1760020982622,0.87778321,121630.0,121620.0,0.27165628]
[1760020982995,0.87778321,121630.0,121620.0,0.24336628]
[1760020983197,0.87778321,121630.0,121620.0,0.00092628]
[1760020983397,1.33105717,121630.0,121620.0,0.00092628]
[1760020983584,1.35226717,121630.0,121620.0,0.00092628]
[1760020984194,1.61388251,121630.0,121620.0,0.00092628]
[1760020984454,2.05568251,121630.0,121620.0,0.00092628]
[1760020986316,1.88515615,121630.0,121620.0,0.00092628]
[1760020987264,0.9499014,121630.0,121620.0,0.00092628]
[1760020987479,0.7859521,121630.0,121620.0,0.20252291]
[1760020987693,0.7859521,121630.0,121620.0,0.28344291]
[1760020987900,0.4459521,121630.0,121620.0,0.52560291]
[1760020988116,0.4459521,121630.0,121620.0,0.36896291]
[1760020988328,0.4459521,121630.0,121620.0,0.61108291]
[1760020988738,0.0041521,121630.0,121620.0,0.61108291]
[1760020989151,0.0011521,121630.0,121620.0,0.28344291]
[1760020989358,0.96504005,121630.0,121620.0,0.47281291]
[1760020989560,0.93272005,121630.0,121620.0,0.30807628]
[1760020989741,1.01371685,121630.0,121620.0,0.30807628]
[1760020990315,0.17268315,121610.0,121580.0,0.0004]
[1760020990519,0.70389601,121590.0,121580.0,0.0004]
[1760020990734,0.8234705,121590.0,121580.0,0.0004]
[1760020990935,0.8754805,121590.0,121580.0,0.0004]
[1760020991146,0.8754805,121590.0,121580.0,0.065]
[1760020991147,0.00653647,121590.0,121580.0,0.065]
[1760020991374,0.16448721,121590.0,121580.0,0.36374]
[1760020991581,1.11676613,121590.0,121580.0,0.0004]
[1760020991826,1.14991803,121590.0,121580.0,0.0004]
[1760020992619,0.67177319,121590.0,121580.0,0.16490074]
[1760020992819,0.34315202,121590.0,121580.0,0.22950074]
[1760020993046,0.34415202,121590.0,121580.0,0.28368074]
[1760020993242,0.50863923,121590.0,121580.0,0.22950074]
[1760020993763,0.50863923,121590.0,121580.0,0.28368074]
[1760020994327,0.34415202,121590.0,121580.0,0.28368074]
[1760020994530,0.00415202,121590.0,121580.0,0.11918]
[1760020994733,0.00415202,121590.0,121580.0,0.61372074]
[1760020994915,0.00415202,121590.0,121580.0,0.36920074]
[1760020995116,0.00415202,121590.0,121580.0,0.61372074]
[1760020995840,0.00415202,121590.0,121580.0,0.28368074]
[1760020996105,0.16863923,121590.0,121580.0,0.56159411]
[1760020996300,0.00415202,121590.0,121580.0,0.56159411]
[1760020996478,0.00415202,121590.0,121580.0,0.61577411]
[1760020997050,0.01825202,121590.0,121580.0,0.23155411]
[1760020997252,0.01825202,121590.0,121580.0,0.52449411]
[1760020997253,0.23986616,121590.0,121580.0,0.52449411]
[1760020997515,0.57986616,121590.0,121580.0,0.00245337]
[1760020997680,1.058011,121590.0,121580.0,0.00245337]
[1760020997854,1.17128496,121590.0,121580.0,0.00245337]
[1760021000194,1.1864065,121590.0,121580.0,0.00245337]
[1760021000404,1.4304465,121590.0,121580.0,0.00245337]
[1760021000621,1.4304865,121590.0,121580.0,0.00245337]
[1760021000826,1.4304865,121590.0,121550.0,0.0004]
[1760021000827,0.5045278,121560.0,121550.0,0.0004]
[1760021001046,1.12836201,121560.0,121550.0,0.0004]
[1760021001288,1.21713201,121560.0,121550.0,0.0004]
[1760021002614,1.21913201,121560.0,121550.0,0.0004]
[1760021003224,1.37663043,121560.0,121550.0,0.0004]
[1760021003586,1.37859043,121560.0,121550.0,0.0004]
[1760021003939,1.37659043,121560.0,121550.0,0.0004]
[1760021004147,1.39167882,121560.0,121550.0,0.0004]
[1760021004355,1.39367882,121560.0,121550.0,0.0004]
[1760021004553,1.39167882,121560.0,121550.0,0.0004]
[1760021005024,1.39467882,121560.0,121550.0,0.0004]
[1760021005652,1.15079882,121560.0,121550.0,0.0004]
[1760021005988,1.14879882,121560.0,121550.0,0.0004]
[1760021006334,1.39443882,121560.0,121550.0,0.0004]
[1760021006544,1.39443882,121560.0,121550.0,0.00194066]
[1760021006942,1.15079882,121560.0,121550.0,0.00194066]
[1760021007734,1.39427882,121560.0,121550.0,0.00194066]
[1760021008138,1.15079882,121560.0,121550.0,0.00194066]
[1760021008298,1.39427882,121560.0,121550.0,0.00194066]
[1760021008722,1.15079882,121560.0,121550.0,0.00194066]
[1760021008944,0.93336057,121560.0,121550.0,0.00194066]
[1760021009149,1.41150541,121560.0,121550.0,0.00194066]
[1760021009344,1.16810541,121560.0,121550.0,0.00194066]
[1760021009550,1.41146541,121560.0,121550.0,0.00194066]
[1760021010795,1.16810541,121560.0,121550.0,0.00194066]
[1760021011017,1.41130541,121560.0,121550.0,0.00194066]
[1760021011252,1.16810541,121560.0,121550.0,0.00194066]
[1760021011539,1.41130541,121560.0,121550.0,0.00194066]
[1760021011701,0.74197057,121560.0,121550.0,0.166482]
[1760021011911,0.98517057,121560.0,121550.0,0.166482]
[1760021012055,0.74197057,121560.0,121550.0,0.00194066]
[1760021012265,1.41122541,121560.0,121550.0,0.00194066]
[1760021013284,1.41118541,121560.0,121550.0,0.00194066]
[1760021013520,1.49118221,121560.0,121550.0,0.00194066]
[1760021013791,1.49110221,121560.0,121550.0,0.00194066]
[1760021014210,1.91723705,121560.0,121550.0,0.00194066]
[1760021014378,1.67423705,121560.0,121550.0,0.00194066]
[1760021014534,1.49110221,121560.0,121550.0,0.00194066]
[1760021015012,1.38696292,121550.0,121540.0,0.0004]
[1760021015148,1.66483017,121550.0,121540.0,0.0004]
[1760021015347,1.75360017,121550.0,121540.0,0.0004]
[1760021016148,1.32761726,121550.0,121540.0,0.0004]
[1760021016350,1.57157726,121550.0,121540.0,0.0004]
[1760021016565,1.57150653,121550.0,121540.0,0.0004]
[1760021016766,1.24302653,121550.0,121540.0,0.0004]
[1760021016991,1.57050653,121550.0,121540.0,0.0004]
[1760021017191,1.55544887,121550.0,121540.0,0.0004]
[1760021017650,1.55844887,121550.0,121540.0,0.0004]
[1760021017960,1.55644887,121550.0,121540.0,0.0004]
[1760021018101,1.55844887,121550.0,121540.0,0.0004]
[1760021018297,1.62067068,121550.0,121540.0,0.0004]
[1760021018930,1.61967068,121550.0,121540.0,0.0004]
[1760021019364,1.62067068,121550.0,121540.0,0.0004]
[1760021019986,1.30727157,121550.0,121540.0,0.0004]
[1760021020194,1.63547157,121550.0,121540.0,0.0004]
[1760021020600,1.62039068,121550.0,121540.0,0.0004]
[1760021020805,1.63448419,121550.0,121540.0,0.00091366]
[1760021020952,1.63248419,121550.0,121540.0,0.00091366]
[1760021021394,1.63448419,121550.0,121540.0,0.00091366]
[1760021021554,1.64202862,121550.0,121540.0,0.00091366]
[1760021021765,1.31382862,121550.0,121540.0,0.00091366]
[1760021021966,1.64182862,121550.0,121540.0,0.00091366]
[1760021022362,1.64282862,121550.0,121540.0,0.00091366]
[1760021022591,0.88114935,121550.0,121540.0,0.00091366]
[1760021022762,1.63527869,121550.0,121540.0,0.00091366]
[1760021022967,2.06895689,121550.0,121540.0,0.00091366]
[1760021023474,2.06795689,121550.0,121540.0,0.00091366]
[1760021023900,1.64082205,121550.0,121540.0,0.00091366]
[1760021024738,1.64282205,121550.0,121540.0,0.00091366]
[1760021025156,1.31282205,121550.0,121540.0,0.00091366]
[1760021025508,1.64166205,121550.0,121540.0,0.00091366]
[1760021025709,1.64266205,121550.0,121540.0,0.00091366]
[1760021025926,1.21652721,121550.0,121540.0,0.00091366]
[1760021026072,1.64266205,121550.0,121540.0,0.00091366]
[1760021026273,1.64166205,121550.0,121540.0,0.00091366]
[1760021026494,1.64266205,121550.0,121540.0,0.00091366]
[1760021026883,1.64216205,121550.0,121540.0,0.00091366]
[1760021027081,1.21402721,121550.0,121540.0,0.00091366]
[1760021027328,1.64016205,121550.0,121540.0,0.00091366]
[1760021027573,0.00823045,121500.0,121470.0,0.0004]
[1760021027811,1.01389305,121480.0,121470.0,0.0004]
[1760021028009,0.73376302,121480.0,121470.0,0.0004]
[1760021028137,0.73376302,121480.0,121470.0,0.06234]
[1760021028138,0.84932622,121480.0,121470.0,0.06234]